fUST/lending_fUST_20250326
["ID","MTS","AMOUNT","RATE_DAILY","PERIOD"]
[356687332,1742954849611,-834.75273087,0.00013439,2]
[356687333,1742954849636,-160.0,0.00013439,2]
[356687334,1742954849658,-1000.0,0.00013442,2]
[356687335,1742954849680,-500.0,0.00013606,2]
[356687336,1742954849701,-500.0,0.00013658,2]
[356687337,1742954849723,-1000.0,0.00013674,2]
[356687338,1742954849749,-162.17189145,0.00013689,2]
[356687339,1742954849773,-500.0,0.00013696,2]
[356687340,1742954849794,-547.08,0.00013696,2]
[356687341,1742954849818,-693.22,0.00013697,2]
[356687342,1742954849840,-500.0,0.00013697,2]
[356687343,1742954849862,-500.0,0.00013697,2]
[356687344,1742954849884,-500.0,0.00013697,2]
[356687345,1742954849906,-697.2,0.00013697,2]
[356687346,1742954849928,-500.0,0.00013697,2]
[356687347,1742954849953,-500.0,0.00013698,2]
[356687348,1742954849977,-500.0,0.00013698,2]
[356687349,1742954850001,-500.0,0.00013698,2]
[356687350,1742954850023,-1000.0,0.00013698,2]
[356687351,1742954850046,-1000.0,0.00013698,2]
[356687352,1742954850067,-1000.0,0.00013698,2]
[356687353,1742954850091,-1000.0,0.00013698,2]
[356687354,1742954850112,-1012.0163938,0.00013698,2]
[356687355,1742954850133,-156.2540507,0.00013698,2]
[356687356,1742954850154,-500.0,0.00013698,2]
[356687357,1742954850175,-500.0,0.00013698,2]
[356687358,1742954850200,-302.96023278,0.00013698,2]
[356687359,1742954850222,-1126.4,0.00013698,2]
[356687360,1742954850246,-500.0,0.00013698,2]
[356687361,1742954850267,-1284.23,0.00013698,2]
[356687362,1742954850288,-1785.78,0.00013698,2]
[356687363,1742954850308,-501.80048132,0.00013698,2]
[356687364,1742954850329,-875.91,0.00013698,2]
[356687365,1742954850351,-829.59,0.00013698,2]
[356687366,1742954850373,-759.65,0.00013698,2]
[356687367,1742954850395,-663.02,0.00013698,2]
[356687368,1742954850417,-254.25905366,0.00013698,2]
[356687369,1742954850441,-500.0,0.00013698,2]
[356687370,1742954850463,-500.0,0.00013698,2]
[356687371,1742954850485,-1190.97,0.00013698,2]
[356687372,1742954850506,-318.765601,0.00013699,2]
[356687373,1742954850528,-187.1829951,0.00013699,2]
[356687374,1742954850552,-171.3613985,0.00013699,2]
[356687375,1742954850576,-1094.9745894,0.00013699,2]
[356687376,1742954850599,-1094.9745894,0.00013699,2]
[356687377,1742954850622,-1094.9745894,0.00013699,2]
[356687378,1742954850644,-1094.9745894,0.00013699,2]
[356687379,1742954850666,-1094.9745894,0.00013699,2]
[356687380,1742954850688,-1094.9745894,0.00013699,2]
[356687381,1742954850711,-1094.9745894,0.00013699,2]
[356687382,1742954850734,-1094.9745894,0.00013699,2]
[356687383,1742954850757,-1094.9745894,0.00013699,2]
[356687384,1742954850779,-1094.9745894,0.00013699,2]
[356687385,1742954850802,-1094.9745894,0.00013699,2]
[356687386,1742954850829,-1094.9745894,0.00013699,2]
[356687387,1742954850853,-1094.9745894,0.00013699,2]
[356687388,1742954850876,-1094.9745894,0.00013699,2]
[356687389,1742954850900,-1094.9745894,0.00013699,2]
[356687390,1742954850922,-1094.9745894,0.00013699,2]
[356687391,1742954850945,-1094.9745894,0.00013699,2]
[356687392,1742954850971,-1094.9745894,0.00013699,2]
[356687393,1742954850999,-1094.9745894,0.00013699,2]
[356687394,1742954851022,-1094.9745894,0.00013699,2]
[356687395,1742954851046,-1094.9745894,0.00013699,2]
[356687396,1742954851071,-1094.9745894,0.00013699,2]
[356687397,1742954851093,-1094.9745894,0.00013699,2]
[356687398,1742954851116,-1094.9745894,0.00013699,2]
[356687399,1742954851140,-1094.9745894,0.00013699,2]
[356687400,1742954851324,-1094.9745894,0.00013699,2]
[356687401,1742954851350,-1094.9745894,0.00013699,2]
[356687402,1742954851372,-1094.9745894,0.00013699,2]
[356687403,1742954851396,-1094.9745894,0.00013699,2]
[356687404,1742954851417,-1094.9745894,0.00013699,2]
[356687405,1742954851439,-1094.9745894,0.00013699,2]
[356687406,1742954851461,-1094.9745894,0.00013699,2]
[356687407,1742954851485,-1094.9745894,0.00013699,2]
[356687408,1742954851507,-1094.9745894,0.00013699,2]
[356687409,1742954851529,-1094.9745894,0.00013699,2]
[356687410,1742954851551,-1094.9745894,0.00013699,2]
[356687411,1742954851573,-1094.9745894,0.00013699,2]
[356687412,1742954851595,-1094.9745894,0.00013699,2]
[356687413,1742954851617,-1094.9745894,0.00013699,2]
[356687414,1742954851638,-1094.9745894,0.00013699,2]
[356687415,1742954851660,-1094.9745894,0.00013699,2]
[356687416,1742954851683,-1094.9745894,0.00013699,2]
[356687417,1742954851706,-1094.9745894,0.00013699,2]
[356687418,1742954851731,-1094.9745894,0.00013699,2]
[356687419,1742954851755,-1094.9745894,0.00013699,2]
[356687420,1742954851778,-1094.9745894,0.00013699,2]
[356687421,1742954851801,-1094.9745894,0.00013699,2]
[356687422,1742954851823,-1094.9745894,0.00013699,2]
[356687423,1742954851845,-1094.9745894,0.00013699,2]
[356687424,1742954851867,-1094.9745894,0.00013699,2]
[356687425,1742954851889,-1094.9745894,0.00013699,2]
[356687426,1742954851910,-1094.9745894,0.00013699,2]
[356687427,1742954851932,-1094.9745894,0.00013699,2]
[356687428,1742954851959,-1094.9745894,0.00013699,2]
[356687429,1742954851983,-1094.9745894,0.00013699,2]
[356687430,1742954852008,-1094.9745894,0.00013699,2]
[356687431,1742954852036,-1094.9745894,0.00013699,2]
[356687432,1742954852061,-1094.9745894,0.00013699,2]
[356687433,1742954852086,-1094.9745894,0.00013699,2]
[356687434,1742954852112,-1094.9745894,0.00013699,2]
[356687435,1742954852137,-1091.06396586,0.00013699,2]
[356687436,1742954852165,-1091.06396586,0.00013699,2]
[356687437,1742954852192,-1091.06396586,0.00013699,2]
[356687438,1742954852217,-1091.06396586,0.00013699,2]
[356687439,1742954852241,-1091.06396586,0.00013699,2]
[356687440,1742954852266,-1091.06396586,0.00013699,2]
[356687441,1742954852290,-1091.06396586,0.00013699,2]
[356687442,1742954852314,-1091.06396586,0.00013699,2]
[356687443,1742954852337,-1091.06396586,0.00013699,2]
[356687444,1742954852360,-1091.06396586,0.00013699,2]
[356687445,1742954852384,-1091.06396586,0.00013699,2]
[356687446,1742954852407,-1091.06396586,0.00013699,2]
[356687447,1742954852431,-1091.06396586,0.00013699,2]
[356687448,1742954852456,-1091.06396586,0.00013699,2]
[356687449,1742954852480,-1091.06396586,0.00013699,2]
[356687450,1742954852503,-1091.06396586,0.00013699,2]
[356687451,1742954852525,-1091.06396586,0.00013699,2]
[356687452,1742954852547,-1091.06396586,0.00013699,2]
[356687453,1742954852570,-1091.06396586,0.00013699,2]
[356687454,1742954852593,-1091.06396586,0.00013699,2]
[356687455,1742954852616,-1091.06396586,0.00013699,2]
[356687456,1742954852638,-1091.06396586,0.00013699,2]
[356687457,1742954852661,-1091.06396586,0.00013699,2]
[356687458,1742954852684,-1091.06396586,0.00013699,2]
[356687459,1742954852706,-1091.06396586,0.00013699,2]
[356687460,1742954852729,-1091.06396586,0.00013699,2]
[356687461,1742954852752,-1091.06396586,0.00013699,2]
[356687462,1742954852775,-1091.06396579,0.00013699,2]
[356687463,1742954852797,-299.999999,0.0001388,2]
[356687464,1742954852818,-2500.0,0.00013942,2]
[356687465,1742954852839,-2500.0,0.00013942,2]
[356687466,1742954852861,-2500.0,0.00013951,2]
[356687467,1742954852883,-2500.0,0.00013951,2]
[356687468,1742954852909,-2500.0,0.0001396,2]
[356687469,1742954852931,-2500.0,0.0001396,2]
[356687470,1742954852957,-2500.0,0.00013968,2]
[356687471,1742954852979,-2500.0,0.00013968,2]
[356687472,1742954853010,-500.0,0.0001397,2]
[356687473,1742954853038,-547.08,0.0001397,2]
[356687474,1742954853063,-693.22,0.00013971,2]
[356687475,1742954853088,-500.0,0.00013971,2]
[356687476,1742954853110,-500.0,0.00013971,2]
[356687477,1742954853134,-500.0,0.00013971,2]
[356687478,1742954853157,-697.2,0.00013971,2]
[356687479,1742954853180,-500.0,0.00013971,2]
[356687480,1742954853203,-500.0,0.00013972,2]
[356687481,1742954853228,-500.0,0.00013972,2]
[356687482,1742954853253,-500.0,0.00013972,2]
[356687483,1742954853276,-500.0,0.00013972,2]
[356687484,1742954853299,-500.0,0.00013972,2]
[356687485,1742954853324,-1126.4,0.00013972,2]
[356687486,1742954853347,-500.0,0.00013972,2]
[356687487,1742954853370,-1284.23,0.00013972,2]
[356687488,1742954853394,-1785.78,0.00013972,2]
[356687489,1742954853416,-875.91,0.00013972,2]
[356687490,1742954853440,-829.59,0.00013972,2]
[356687491,1742954853462,-759.65,0.00013972,2]
[356687492,1742954853486,-663.02,0.00013972,2]
[356687493,1742954853510,-500.0,0.00013972,2]
[356687494,1742954853533,-500.0,0.00013972,2]
[356687495,1742954853557,-1190.97,0.00013972,2]
[356687496,1742954853580,-501.1609396,0.00013973,2]
[356687497,1742954853602,-500.0,0.00013973,2]
[356687498,1742954853627,-500.0,0.00013973,2]
[356687499,1742954853649,-2500.0,0.00013977,2]
[356687500,1742954853672,-2500.0,0.00013977,2]
[356687501,1742954853694,-2500.0,0.00013977,2]
[356687502,1742954853717,-2500.0,0.00013986,2]
[356687503,1742954853739,-2500.0,0.00013986,2]
[356687504,1742954853761,-2500.0,0.00013986,2]
[356687505,1742954853785,-2500.0,0.00013995,2]
[356687506,1742954853808,-2500.0,0.00013995,2]
[356687507,1742954853830,-2500.0,0.00013995,2]
[356687508,1742954853852,-2000.0,0.00014,2]
[356687509,1742954853874,-1657.8,0.00014,2]
[356687510,1742954853895,-500.0,0.00014061,2]
[356687511,1742954853918,-300.0,0.000141,5]
[356687512,1742954853940,-500.0,0.00014101,2]
[356687513,1742954853967,-500.0,0.00014244,2]
[356687514,1742954853991,-547.08,0.00014244,2]
[356687515,1742954854012,-693.22,0.00014245,2]
[356687516,1742954854036,-500.0,0.00014245,2]
[356687517,1742954854061,-500.0,0.00014245,2]
[356687518,1742954854086,-500.0,0.00014245,2]
[356687519,1742954854111,-697.2,0.00014245,2]
[356687520,1742954854134,-500.0,0.00014245,2]
[356687521,1742954854158,-648.54796067,0.00014246,2]
[356687522,1742954854183,-500.0,0.00014246,2]
[356687523,1742954854206,-500.0,0.00014246,2]
[356687524,1742954854231,-500.0,0.00014246,2]
[356687525,1742954854258,-335.98762339,0.00014246,2]
[356687526,1742954854288,-1126.4,0.00014246,2]
[356687527,1742954854312,-500.0,0.00014246,2]
[356687528,1742954854335,-1284.23,0.00014246,2]
[356687529,1742954854359,-1785.78,0.00014246,2]
[356687530,1742954854382,-875.91,0.00014246,2]
[356687531,1742954854405,-829.59,0.00014246,2]
[356687532,1742954854428,-759.65,0.00014246,2]
[356687533,1742954854451,-663.02,0.00014246,2]
[356687534,1742954854475,-500.0,0.00014246,2]
[356687535,1742954854501,-500.0,0.00014246,2]
[356687536,1742954854522,-1190.97,0.00014246,2]
[356687537,1742954854544,-500.0,0.00014275,2]
[356687538,1742954854565,-500.0,0.00014313,2]
[356687539,1742954854588,-3276.54167808,0.00014314,2]
[356687540,1742954854611,-500.0,0.00014518,2]
[356687541,1742954854632,-547.08,0.00014518,2]
[356687542,1742954854654,-693.22,0.00014519,2]
[356687543,1742954854676,-500.0,0.00014519,2]
[356687544,1742954854698,-500.0,0.00014519,2]
[356687545,1742954854720,-500.0,0.00014519,2]
[356687546,1742954854744,-697.2,0.00014519,2]
[356687547,1742954854766,-610.26,0.00014519,2]
[356687548,1742954854789,-500.0,0.0001452,2]
[356687549,1742954854811,-495.09120333,0.0001452,2]
[356687550,1742954854833,-500.0,0.0001452,2]
[356687551,1742954854856,-1126.4,0.0001452,2]
[356687552,1742954854878,-500.0,0.0001452,2]
[356687553,1742954854900,-1284.23,0.0001452,2]
[356687554,1742954854924,-1785.78,0.0001452,2]
[356687555,1742954855069,-875.91,0.0001452,2]
[356687556,1742954855092,-829.59,0.0001452,2]
[356687557,1742954855115,-759.65,0.0001452,2]
[356687558,1742954855140,-663.02,0.0001452,2]
[356687559,1742954855164,-500.0,0.0001452,2]
[356687560,1742954855187,-500.0,0.0001452,2]
[356687561,1742954855209,-1190.97,0.0001452,2]
[356687562,1742954855230,-397.0,0.00014539,2]
[356687563,1742954855252,-1000.0,0.00014576,2]
[356687564,1742954855273,-500.0,0.00014607,2]
[356687565,1742954855295,-162.17189145,0.00014694,2]
[356687566,1742954855317,-500.0,0.00014792,2]
[356687567,1742954855339,-547.08,0.00014792,2]
[356687568,1742954855362,-693.22,0.00014793,2]
[356687569,1742954855385,-500.0,0.00014793,2]
[356687570,1742954855406,-500.0,0.00014793,2]
[356687571,1742954855428,-500.0,0.00014793,2]
[356687572,1742954855450,-697.2,0.00014793,2]
[356687573,1742954855472,-500.0,0.00014794,2]
[356687574,1742954855494,-335.67799392,0.00014794,2]
[356687575,1742954855516,-1126.4,0.00014794,2]
[356687576,1742954855539,-500.0,0.00014794,2]
[356687577,1742954855561,-1284.23,0.00014794,2]
[356687578,1742954855584,-1785.78,0.00014794,2]
[356687579,1742954855606,-875.91,0.00014794,2]
[356687580,1742954855628,-829.59,0.00014794,2]
[356687581,1742954855651,-759.65,0.00014794,2]
[356687582,1742954855672,-663.02,0.00014794,2]
[356687583,1742954855695,-500.0,0.00014794,2]
[356687584,1742954855720,-500.0,0.00014794,2]
[356687585,1742954855742,-1190.97,0.00014794,2]
[356687586,1742954855763,-500.0,0.0001481,2]
[356687587,1742954855785,-1000.0,0.00014833,2]
[356687588,1742954855807,-1000.0,0.00014834,2]
[356687589,1742954855829,-1000.0,0.00014878,2]
[356687590,1742954855852,-19855.80377713,0.00014915,2]
[356687591,1742954855874,-1000.52710495,0.00014968,2]
[356687592,1742954855895,-2000.0,0.00015,2]
[356687593,1742954855916,-500.0,0.00015032,2]
[356687594,1742954855940,-500.0,0.00015066,2]
[356687595,1742954855964,-547.08,0.00015066,2]
[356687596,1742954855986,-693.22,0.00015067,2]
[356687597,1742954856007,-500.0,0.00015067,2]
[356687598,1742954856028,-500.0,0.00015067,2]
[356687599,1742954856050,-500.0,0.00015067,2]
[356687600,1742954856072,-697.2,0.00015067,2]
[356687601,1742954856093,-500.0,0.00015068,2]
[356687602,1742954856116,-1126.4,0.00015068,2]
[356687603,1742954856138,-500.0,0.00015068,2]
[356687604,1742954856159,-1284.23,0.00015068,2]
[356687605,1742954856180,-1785.78,0.00015068,2]
[356687606,1742954856203,-875.91,0.00015068,2]
[356687607,1742954856224,-829.59,0.00015068,2]
[356687608,1742954856246,-759.65,0.00015068,2]
[356687609,1742954856267,-663.02,0.00015068,2]
[356687610,1742954856290,-500.0,0.00015068,2]
[356687611,1742954856312,-500.0,0.00015068,2]
[356687612,1742954856333,-1190.97,0.00015068,2]
[356687613,1742954856354,-500.0,0.0001512,2]
[356687614,1742954856375,-500.0,0.00015199,2]
[356687615,1742954856397,-1000.0,0.00015238,2]
[356687616,1742954856418,-171.0,0.0001524,30]
[356687617,1742954856439,-500.0,0.00015247,2]
[356687618,1742954856460,-500.0,0.00015321,2]
[356687619,1742954856482,-500.0,0.0001534,2]
[356687620,1742954856503,-547.08,0.0001534,2]
[356687621,1742954856524,-693.22,0.00015341,2]
[356687622,1742954856546,-500.0,0.00015341,2]
[356687623,1742954856567,-500.0,0.00015341,2]
[356687624,1742954856588,-500.0,0.00015341,2]
[356687625,1742954856608,-697.2,0.00015341,2]
[356687626,1742954856628,-500.0,0.00015342,2]
[356687627,1742954856650,-1126.4,0.00015342,2]
[356687628,1742954856671,-500.0,0.00015342,2]
[356687629,1742954856692,-1284.23,0.00015342,2]
[356687630,1742954856714,-1785.78,0.00015342,2]
[356687631,1742954856736,-875.91,0.00015342,2]
[356687632,1742954856758,-829.59,0.00015342,2]
[356687633,1742954856780,-759.65,0.00015342,2]
[356687634,1742954856815,-663.02,0.00015342,2]
[356687635,1742954856843,-500.0,0.00015342,2]
[356687636,1742954856866,-500.0,0.00015342,2]
[356687637,1742954856889,-1190.97,0.00015342,2]
[356687638,1742954856910,-500.0,0.00015351,2]
[356687639,1742954856931,-500.0,0.00015412,2]
[356687640,1742954856956,-500.0,0.00015429,2]
[356687641,1742954856978,-500.0,0.00015513,2]
[356687642,1742954857002,-3276.54167808,0.00015521,2]
[356687643,1742954857026,-300.0,0.000156,5]
[356687644,1742954857049,-562.83334718,0.00015614,2]
[356687645,1742954857074,-547.08,0.00015614,2]
[356687646,1742954857096,-693.22,0.00015615,2]
[356687647,1742954857119,-500.0,0.00015615,2]
[356687648,1742954857142,-500.0,0.00015615,2]
[356687649,1742954857166,-500.0,0.00015615,2]
[356687650,1742954857188,-697.2,0.00015615,2]
[356687651,1742954857211,-641.45,0.00015616,2]
[356687652,1742954857234,-1126.4,0.00015616,2]
[356687653,1742954857257,-500.0,0.00015616,2]
[356687654,1742954857280,-1284.23,0.00015616,2]
[356687655,1742954857302,-1785.78,0.00015616,2]
[356687656,1742954857324,-875.91,0.00015616,2]
[356687657,1742954857347,-829.59,0.00015616,2]
[356687658,1742954857370,-759.65,0.00015616,2]
[356687659,1742954857392,-663.02,0.00015616,2]
[356687660,1742954857415,-500.0,0.00015616,2]
[356687661,1742954857437,-500.0,0.00015616,2]
[356687662,1742954857459,-1190.97,0.00015616,2]
[356687663,1742954857480,-500.0,0.00015617,2]
[356687664,1742954857503,-500.0,0.0001562,2]
[356687665,1742954857523,-1000.0,0.00015622,2]
[356687666,1742954857544,-1000.0,0.00015628,2]
[356687667,1742954857569,-1000.0,0.00015689,2]
[356687668,1742954857590,-150.20451589,0.00015843,2]
[356687669,1742954857612,-500.92642587,0.00015843,2]
[356687670,1742954857632,-258.26101055,0.00015843,2]
[356687671,1742954857653,-547.08,0.00015888,2]
[356687672,1742954857675,-693.22,0.00015889,2]
[356687673,1742954857696,-500.0,0.00015889,2]
[356687674,1742954857717,-500.0,0.00015889,2]
[356687675,1742954857740,-500.0,0.00015889,2]
[356687676,1742954857763,-697.2,0.00015889,2]
[356687677,1742954857784,-1126.4,0.0001589,2]
[356687678,1742954857806,-500.0,0.0001589,2]
[356687679,1742954857827,-1284.23,0.0001589,2]
[356687680,1742954857849,-1785.78,0.0001589,2]
[356687681,1742954857871,-875.91,0.0001589,2]
[356687682,1742954857893,-829.59,0.0001589,2]
[356687683,1742954857914,-759.65,0.0001589,2]
[356687684,1742954857936,-663.02,0.0001589,2]
[356687685,1742954857960,-500.0,0.0001589,2]
[356687686,1742954857981,-1190.97,0.0001589,2]
[356687687,1742954858005,-7244.21920971,0.00015925,2]
[356687688,1742954858025,-500.0,0.00015943,2]
[356687689,1742954858047,-179.71246006,0.00015952,2]
[356687690,1742954858068,-895.099999,0.00016,2]
[356687691,1742954858089,-500.0,0.00016062,2]
[356687692,1742954858110,-547.08,0.00016162,2]
[356687693,1742954858132,-693.22,0.00016163,2]
[356687694,1742954858153,-500.0,0.00016163,2]
[356687695,1742954858174,-500.0,0.00016163,2]
[356687696,1742954858196,-500.0,0.00016163,2]
[356687697,1742954858217,-697.2,0.00016163,2]
[356687698,1742954858240,-1126.4,0.00016164,2]
[356687699,1742954858262,-500.0,0.00016164,2]
[356687700,1742954858283,-1284.23,0.00016164,2]
[356687701,1742954858304,-1785.78,0.00016164,2]
[356687702,1742954858326,-875.91,0.00016164,2]
[356687703,1742954858348,-829.59,0.00016164,2]
[356687704,1742954858524,-759.65,0.00016164,2]
[356687705,1742954858549,-663.02,0.00016164,2]
[356687706,1742954858573,-500.0,0.00016164,2]
[356687707,1742954858596,-1190.97,0.00016164,2]
[356687708,1742954858620,-500.0,0.00016262,2]
[356687709,1742954858641,-2275.433,0.00016312,2]
[356687710,1742954858663,-1921.34,0.00016312,2]
[356687711,1742954858685,-400.0,0.00016312,2]
[356687712,1742954858706,-1000.0,0.00016367,2]
[356687713,1742954858729,-150.103,0.00016427,2]
[356687714,1742954858753,-298.548,0.00016427,2]
[356687715,1742954858774,-541.0,0.00016427,2]
[356687716,1742954858795,-150.725,0.00016427,2]
[356687717,1742954858817,-547.08,0.00016436,2]
[356687718,1742954858839,-693.22,0.00016437,2]
[356687719,1742954858860,-500.0,0.00016437,2]
[356687720,1742954858881,-500.0,0.00016437,2]
[356687721,1742954858904,-500.0,0.00016437,2]
[356687722,1742954858927,-697.2,0.00016437,2]
[356687723,1742954858950,-500.0,0.00016438,2]
[356687724,1742954858976,-500.0,0.00016438,2]
[356687725,1742954858998,-500.0,0.00016438,2]
[356687726,1742954859021,-500.0,0.00016438,2]
[356687727,1742954859045,-500.0,0.00016438,2]
[356687728,1742954859067,-500.0,0.00016438,2]
[356687729,1742954859089,-502.45261492,0.00016438,2]
[356687730,1742954859111,-200.0,0.00016438,2]
[356687731,1742954859133,-216.63531032,0.00016438,2]
[356687732,1742954859157,-1126.4,0.00016438,2]
[356687733,1742954859179,-500.0,0.00016438,2]
[356687734,1742954859202,-1284.23,0.00016438,2]
[356687735,1742954859225,-1785.78,0.00016438,2]
[356687736,1742954859248,-875.91,0.00016438,2]
[356687737,1742954859270,-829.59,0.00016438,2]
[356687738,1742954859292,-759.65,0.00016438,2]
[356687739,1742954859314,-663.02,0.00016438,2]
[356687740,1742954859336,-500.0,0.00016438,2]
[356687741,1742954859358,-1190.97,0.00016438,2]
[356687742,1742954859381,-151.0,0.00016438,2]
[356687743,1742954859404,-151.0,0.00016438,2]
[356687744,1742954859426,-151.0,0.00016438,2]
[356687745,1742954859447,-151.0,0.00016438,2]
[356687746,1742954859469,-151.0,0.00016438,2]
[356687747,1742954859490,-151.0,0.00016438,2]
[356687748,1742954859510,-151.0,0.00016438,2]
[356687749,1742954859531,-151.0,0.00016438,2]
[356687750,1742954859551,-151.0,0.00016438,2]
[356687751,1742954859572,-151.0,0.00016438,2]
[356687752,1742954859593,-151.0,0.00016438,2]
[356687753,1742954859614,-151.0,0.00016438,2]
[356687754,1742954859634,-151.0,0.00016438,2]
[356687755,1742954859656,-151.0,0.00016438,2]
[356687756,1742954859677,-151.0,0.00016438,2]
[356687757,1742954859699,-217.305981,0.00016438,2]
[356687758,1742954859720,-151.0,0.00016438,2]
[356687759,1742954859742,-151.0,0.00016438,2]
[356687760,1742954859763,-151.0,0.00016438,2]
[356687761,1742954859784,-151.0,0.00016438,2]
[356687762,1742954859805,-151.0,0.00016438,2]
[356687763,1742954859825,-168.948391,0.00016438,2]
[356687764,1742954859846,-151.0,0.00016438,2]
[356687765,1742954859866,-151.0,0.00016438,2]
[356687766,1742954859888,-151.0,0.00016438,2]
[356687767,1742954859908,-151.0,0.00016438,2]
[356687768,1742954859929,-151.0,0.00016438,2]
[356687769,1742954859950,-151.0,0.00016438,2]
[356687770,1742954859974,-151.0,0.00016438,2]
[356687771,1742954859997,-151.0,0.00016438,2]
[356687772,1742954860020,-151.0,0.00016438,2]
[356687773,1742954860040,-151.0,0.00016438,2]
[356687774,1742954860062,-177.980711,0.00016438,2]
[356687775,1742954860083,-156.722228,0.00016438,2]
[356687776,1742954860104,-1323.98082,0.000165,2]
[356687777,1742954860126,-1000.0,0.00016579,2]
[356687778,1742954860148,-547.08,0.0001671,2]
[356687779,1742954860170,-693.22,0.00016711,2]
[356687780,1742954860191,-500.0,0.00016711,2]
[356687781,1742954860212,-500.0,0.00016711,2]
[356687782,1742954860234,-493.62284067,0.00016711,2]
[356687783,1742954860256,-697.2,0.00016711,2]
[356687784,1742954860279,-1126.4,0.00016712,2]
[356687785,1742954860302,-500.0,0.00016712,2]
[356687786,1742954860324,-1284.23,0.00016712,2]
[356687787,1742954860346,-1785.78,0.00016712,2]
[356687788,1742954860369,-875.91,0.00016712,2]
[356687789,1742954860392,-829.59,0.00016712,2]
[356687790,1742954860414,-759.65,0.00016712,2]
[356687791,1742954860436,-663.02,0.00016712,2]
[356687792,1742954860457,-500.0,0.00016712,2]
[356687793,1742954860479,-1190.97,0.00016712,2]
[356687794,1742954860503,-3276.54167808,0.00016728,2]
[356687795,1742954860524,-500.0,0.0001677,2]
[356687796,1742954860544,-500.0,0.00016913,2]
[356687797,1742954860564,-500.0,0.00016921,2]
[356687798,1742954860585,-547.08,0.00016984,2]
[356687799,1742954860612,-693.22,0.00016985,2]
[356687800,1742954860634,-500.0,0.00016985,2]
[356687801,1742954860660,-500.0,0.00016985,2]
[356687802,1742954860681,-697.2,0.00016985,2]
[356687803,1742954860705,-1126.4,0.00016986,2]
[356687804,1742954860727,-371.63919093,0.00016986,2]
[356687805,1742954860750,-1284.23,0.00016986,2]
[356687806,1742954860772,-1785.78,0.00016986,2]
[356687807,1742954860794,-875.91,0.00016986,2]
[356687808,1742954860816,-829.59,0.00016986,2]
[356687809,1742954860838,-759.65,0.00016986,2]
[356687810,1742954860860,-663.02,0.00016986,2]
[356687811,1742954860882,-398.18471675,0.00016986,2]
[356687812,1742954860903,-1190.97,0.00016986,2]
[356687813,1742954860924,-1000.0,0.00016996,2]
[356687814,1742954860947,-1000.0,0.00017,2]
[356687815,1742954860971,-2200.0,0.00017014,2]
[356687816,1742954860994,-500.0,0.00017045,2]
[356687817,1742954861016,-1000.0,0.00017073,2]
[356687818,1742954861039,-300.0,0.000171,6]
[356687819,1742954861061,-1000.0,0.00017105,2]
[356687820,1742954861082,-1000.0,0.00017133,2]
[356687821,1742954861104,-547.08,0.00017258,2]
[356687822,1742954861126,-693.22,0.00017259,2]
[356687823,1742954861147,-511.34461549,0.00017259,2]
[356687824,1742954861168,-416.8432376,0.00017259,2]
[356687825,1742954861188,-697.2,0.00017259,2]
[356687826,1742954861211,-1126.50939261,0.0001726,2]
[356687827,1742954861233,-1284.43432012,0.0001726,2]
[356687828,1742954861256,-1785.86665957,0.0001726,2]
[356687829,1742954861280,-875.93605271,0.0001726,2]
[356687830,1742954861303,-829.60970831,0.0001726,2]
[356687831,1742954861326,-759.86506078,0.0001726,2]